bitfinex/quotes_ETHUSD_20220731
["timestamp","ask_amount","ask_price","bid_price","bid_amount"]
[1659281505330,3.514,1709.6,1709.0,0.05]
[1659281505534,16.38674672,1709.5,1708.8,0.05]
[1659281505744,1.66263,1709.3,1708.6,3.2556]
[1659281505952,8.37467672,1709.3,1708.6,3.2056]
[1659281506228,3.3,1709.2,1708.6,3.2056]
[1659281507341,3.3,1709.2,1708.4,0.4894]
[1659281507342,9.71204672,1709.2,1708.4,0.4894]
[1659281507543,10.15124672,1709.2,1708.4,2.89804672]
[1659281508914,3.3,1709.2,1708.5,0.11490476]
[1659281509140,3.3,1709.2,1708.6,2.89804672]
[1659281509768,3.64471435,1709.2,1708.6,2.89804672]
[1659281510768,3.64471435,1709.2,1708.5,3.49357808]
[1659281512009,3.64471435,1709.2,1708.5,3.78607808]
[1659281512835,3.64471435,1709.2,1708.6,6.6035631]
[1659281513048,5.593,1709.3,1708.7,3.24687097]
[1659281513359,0.05,1709.4,1708.9,0.2]
[1659281513519,0.05,1709.6,1709.0,3.33734672]
[1659281513718,8.9104,1709.7,1709.1,2.95441777]
[1659281513946,8.8604,1709.7,1709.2,3.33724672]
[1659281515265,8.8604,1709.7,1709.2,3.53724672]
[1659281516006,8.8604,1709.7,1709.3,0.05636446]
[1659281516493,8.8604,1709.7,1709.3,2.95441118]
[1659281517100,9.1604,1709.7,1709.3,2.95441118]
[1659281517301,9.1604,1709.7,1709.3,3.24678118]
[1659281517459,9.1604,1709.7,1709.3,3.28740565]
[1659281518368,9.1604,1709.7,1709.3,3.32794027]
[1659281521324,9.1604,1709.7,1709.3,0.08115909]
[1659281521800,0.2,1709.5,1709.3,0.08115909]
[1659281521971,4.99965672,1709.5,1709.3,0.04053462]
[1659281522177,0.2,1709.3,1708.9,0.05]
[1659281522377,0.2,1709.3,1708.6,5.7931]
[1659281522378,7.05124672,1709.3,1708.6,5.7931]
[1659281522579,9.27598436,1709.2,1708.6,5.7431]
[1659281522763,10.73881436,1709.2,1708.6,5.7431]
[1659281522991,10.73881436,1709.2,1708.4,0.05]
[1659281522992,0.2,1708.6,1708.4,0.05]
[1659281523190,0.2,1708.6,1708.0,0.05]
[1659281523497,0.05,1708.7,1707.8,0.05]
[1659281523661,0.05,1708.7,1707.7,6.194]
[1659281523662,3.05,1708.7,1707.7,6.194]
[1659281523862,3.05,1708.7,1707.8,16.06304672]
[1659281524083,0.05,1708.7,1708.1,6.365]
[1659281524403,9.3349,1708.9,1708.2,1.24583755]
[1659281524635,9.2849,1708.9,1708.2,1.24583755]
[1659281524758,9.2849,1708.9,1708.6,0.2]
[1659281524961,6.5092,1709.1,1708.6,0.31490476]
[1659281525201,6.8092,1709.1,1708.6,0.11490476]
[1659281526005,0.48307971,1708.8,1708.6,0.11490476]
[1659281527166,0.48307971,1708.8,1708.6,3.01295148]
[1659281527772,0.06324,1708.8,1708.7,2.89804672]
[1659281528003,0.12648,1708.8,1708.7,2.89804672]
[1659281530297,0.12648,1708.8,1708.7,3.09804672]
[1659281530732,0.12648,1708.8,1708.7,3.53744672]
[1659281532789,0.12648,1708.8,1708.7,3.33744672]
[1659281535432,0.12648,1708.8,1708.7,2.89804672]
[1659281535998,0.12648,1708.8,1708.6,0.07856052]
[1659281536200,0.19088,1708.8,1708.6,0.07856052]
[1659281537199,0.19088,1708.8,1708.7,2.89804672]
[1659281537406,0.19088,1708.8,1708.7,6.18776215]
[1659281537641,0.12648,1708.8,1708.7,6.18776215]
[1659281539332,0.12648,1708.8,1708.6,0.11637615]
[1659281539579,0.12648,1708.8,1708.6,3.01442287]
[1659281542382,0.12274958,1708.8,1708.6,0.11637615]
[1659281552407,5.0,1708.6,1708.2,0.05]
[1659281552644,0.06622,1708.5,1707.9,0.05]
[1659281552928,0.12946,1708.5,1707.9,0.0384002]
[1659281553085,0.12946,1708.5,1707.9,0.3309902]
[1659281553287,0.12946,1708.5,1708.0,0.4395]
[1659281553488,0.12946,1708.5,1708.1,2.89804672]
[1659281553732,0.12946,1708.5,1708.2,1.241]
[1659281553941,0.06324,1708.5,1708.4,0.2]
[1659281554241,0.06324,1708.5,1708.4,3.09804672]
[1659281554446,0.06324,1708.5,1708.4,7.03744672]
[1659281554593,0.05,1708.9,1708.5,6.365]
[1659281554938,0.05,1709.2,1708.6,14.19510889]
[1659281555132,0.05,1709.4,1708.8,3.5]
[1659281555292,0.05,1709.5,1708.9,2.89804672]
[1659281555487,3.2873,1709.6,1708.9,2.89804672]
[1659281555920,0.34471435,1709.5,1708.9,2.89804672]
[1659281556109,0.64471435,1709.5,1708.9,2.89804672]
[1659281556699,0.64471435,1709.5,1708.9,6.11124672]
[1659281557327,0.64471435,1709.5,1709.0,0.03795266]
[1659281558558,0.64471435,1709.5,1709.0,0.32673706]
[1659281559940,0.64471435,1709.5,1709.0,3.22478378]
[1659281560150,0.34471435,1709.5,1709.0,3.42478378]
[1659281560464,8.9881,1709.7,1709.1,6.48031447]
[1659281560706,8.9381,1709.7,1709.2,2.89804672]
[1659281563795,8.9381,1709.7,1709.3,0.2]
[1659281563979,8.9381,1709.7,1709.3,3.14344847]
[1659281564560,8.9381,1709.7,1709.3,3.09344847]
[1659281565189,9.62151435,1709.8,1709.3,3.09344847]
[1659281565361,9.62151435,1709.8,1709.3,2.94344847]
[1659281566098,0.05,1709.7,1709.3,2.94344847]
[1659281569502,0.05,1709.7,1709.3,2.89804672]
[1659281571105,0.05,1709.4,1709.2,0.07703841]
[1659281574008,0.34471435,1709.5,1709.2,0.07703841]
[1659281574009,0.59471435,1709.3,1709.2,0.07703841]
[1659281574197,3.56012979,1709.3,1709.2,0.07703841]
[1659281574401,9.89737651,1709.3,1709.2,0.03903841]
[1659281574582,27.61457651,1709.3,1709.2,0.03903841]
[1659281574983,27.91457651,1709.3,1708.7,0.05]
[1659281575284,0.4392,1709.2,1708.5,0.05]
[1659281575472,0.34471435,1709.1,1708.5,2.89804672]
[1659281575893,0.05,1708.9,1708.5,2.90199652]
[1659281576223,0.34471435,1709.1,1708.5,6.40199652]
[1659281576398,0.34471435,1709.1,1708.5,2.90199652]
[1659281577021,0.34471435,1709.1,1708.5,3.19449652]
[1659281577599,0.34471435,1709.1,1708.5,6.69449652]
[1659281577995,0.34471435,1709.1,1708.5,3.19449652]
[1659281578507,0.34471435,1709.1,1708.5,3.23239027]
[1659281579034,0.34471435,1709.1,1708.6,0.33030256]
[1659281580341,0.34471435,1709.1,1708.7,2.89804672]
[1659281580497,0.34471435,1709.1,1708.7,3.01295148]
[1659281580697,0.34471435,1709.1,1708.8,2.89804672]
[1659281581893,0.34471435,1709.1,1708.8,3.19050672]
[1659281582697,0.34471435,1709.1,1708.8,3.22839784]
[1659281583597,0.34471435,1709.1,1708.8,3.26619898]
[1659281584026,0.34471435,1709.1,1708.8,0.07569226]
[1659281584239,0.05,1708.9,1708.8,0.07569226]
[1659281587170,13.74142672,1709.1,1708.8,0.07569226]
[1659281587355,9.3807,1709.1,1708.8,0.07569226]
[1659281587960,9.3307,1709.1,1708.8,0.07569226]
[1659281588174,9.0307,1709.1,1708.8,0.07569226]
[1659281588359,3.7392,1709.2,1708.8,0.07569226]
[1659281588587,4.0392,1709.2,1708.8,0.07569226]
[1659281588958,4.0392,1709.2,1708.8,0.36816226]
[1659281588959,0.6,1709.2,1708.8,0.36816226]
[1659281589302,24.20171435,1709.3,1708.8,0.36816226]
[1659281589454,12.53501435,1709.3,1708.8,3.70550898]
[1659281589656,12.53501435,1709.3,1708.9,6.18833919]
[1659281589657,12.1903,1709.3,1708.9,6.18833919]
[1659281589903,0.05,1709.5,1708.9,6.18833919]
[1659281590085,9.7841,1709.7,1709.0,0.11490476]
[1659281590270,12.19304672,1709.7,1709.0,0.40727476]
[1659281590917,18.70681638,1709.7,1709.0,3.30532148]
[1659281591115,0.34471435,1709.6,1709.0,3.30532148]
[1659281591336,0.64471435,1709.6,1709.1,2.89804672]
[1659281591702,0.34471435,1709.6,1709.1,2.89804672]
[1659281591906,0.34471435,1709.6,1709.1,2.93578196]
[1659281592111,0.34471435,1709.6,1709.2,2.89804672]
[1659281594773,0.34471435,1709.6,1709.2,2.9358618]
[1659281595183,3.85023073,1709.6,1709.2,0.03781508]
[1659281595383,0.34471435,1709.6,1709.2,0.03781508]
[1659281595564,0.64471435,1709.6,1709.2,0.03781508]
[1659281595965,1.46235,1709.5,1709.2,0.03781508]
[1659281596668,1.46235,1709.5,1709.3,0.03772382]
[1659281597351,1.76235,1709.5,1709.3,0.03772382]
[1659281598525,0.05,1709.4,1709.3,0.03772382]
[1659281602480,2.39952185,1709.5,1709.3,0.03772382]
[1659281602708,6.39952185,1709.5,1709.3,0.03772382]
[1659281604539,6.39952185,1709.5,1709.3,0.00072382]
[1659281604540,6.46204672,1709.4,1709.3,0.00072382]
[1659281605023,9.90494672,1709.4,1709.3,0.00072382]
[1659281605186,13.34414672,1709.4,1709.3,0.00072382]
[1659281605387,12.90494672,1709.4,1709.3,0.00072382]
[1659281605787,12.90494672,1709.4,1709.3,0.03712705]
[1659281606739,3.2429,1709.4,1709.3,0.03712705]
[1659281607094,0.34471435,1709.5,1709.3,0.03712705]
[1659281607737,9.295,1709.7,1709.4,2.89804672]
[1659281612402,0.34471435,1709.9,1709.4,2.89804672]
[1659281612554,0.64471435,1709.9,1709.4,3.33724672]
[1659281612889,0.64471435,1709.9,1709.5,2.89804672]
[1659281615580,0.34471435,1709.9,1709.5,2.89804672]
[1659281615778,0.34471435,1709.9,1709.6,0.0354861]
[1659281616596,0.34471435,1709.9,1709.5,2.89804672]
[1659281617597,0.34471435,1709.9,1709.7,0.03710993]
[1659281617986,1.80668435,1709.9,1709.7,0.03710993]
[1659281619808,0.34471435,1709.9,1709.7,0.03710993]
[1659281621426,1.80671435,1709.9,1709.7,0.03710993]
[1659281622064,0.34471435,1709.9,1709.7,0.03710993]
[1659281624030,0.34471435,1709.9,1709.8,0.17598436]
[1659281624255,26.8621,1710.1,1709.9,0.17598436]
[1659281624429,20.9416,1710.1,1709.9,0.17598436]
[1659281624624,20.9416,1710.1,1709.8,1.92970436]
[1659281624824,20.9416,1710.1,1709.8,0.17598436]
[1659281625059,20.9416,1710.1,1709.9,0.17598436]
[1659281625625,21.2416,1710.1,1709.9,0.17598436]
[1659281626032,21.2416,1710.1,1709.8,0.07428935]
[1659281626284,9.7416,1710.1,1709.8,0.07428935]
[1659281626565,10.0339838,1710.1,1709.8,0.07428935]
[1659281626923,11.4958138,1710.1,1709.8,0.07428935]
[1659281628548,3.514,1709.7,1709.1,0.05]
[1659281628777,3.514,1709.7,1708.9,0.4893]
[1659281628778,8.8128,1709.6,1708.9,0.4893]
[1659281628976,8.8128,1709.6,1708.9,0.4393]
[1659281629374,0.34471435,1709.5,1708.9,0.4393]
[1659281629766,0.34471435,1709.5,1709.1,0.07196122]
[1659281629767,0.64471435,1709.5,1709.1,0.07196122]
[1659281629970,3.64471435,1709.5,1709.1,0.07196122]
[1659281630170,3.94471435,1709.5,1709.1,0.07196122]
[1659281631891,5.40719435,1709.5,1709.1,0.07196122]
[1659281636130,0.05,1709.4,1709.1,0.07196122]
[1659281636558,0.05,1709.4,1709.0,0.26441122]
[1659281637051,0.05,1709.4,1709.2,0.07066334]
[1659281638436,5.89966095,1709.5,1709.2,0.07066334]
[1659281638437,1.80719435,1709.5,1709.2,0.07066334]
[1659281638672,14.641,1709.6,1709.2,0.07066334]
[1659281639028,14.641,1709.6,1709.3,0.29238]
[1659281639226,8.8128,1709.6,1709.3,0.29238]
[1659281640429,11.912,1709.8,1709.3,0.29238]
[1659281640627,0.3,1709.7,1709.3,0.29238]
[1659281640857,3.0447,1709.8,1709.3,5.09138672]
[1659281641596,3.0447,1709.8,1709.4,2.89804672]
[1659281641927,11.85141435,1709.9,1709.4,2.89804672]
[1659281642880,11.85141435,1709.9,1709.4,2.96638028]
[1659281644159,11.85141435,1709.9,1709.4,3.25873028]
[1659281644373,8.773,1709.9,1709.5,2.98257564]
[1659281644556,8.773,1709.9,1709.5,3.42177564]
[1659281645377,8.773,1709.9,1709.6,0.44232]
[1659281646349,8.773,1709.9,1709.6,0.29232]
[1659281646549,8.773,1709.9,1709.4,0.50753356]
[1659281646766,8.773,1709.9,1709.6,0.06667575]
[1659281647834,10.23509,1709.9,1709.6,0.10079118]
[1659281648463,10.57980435,1709.9,1709.6,0.10079118]
[1659281649878,9.11771435,1709.9,1709.6,0.10079118]
[1659281652314,10.57968435,1709.9,1709.6,0.10079118]
[1659281652518,0.05,1709.7,1709.6,0.10079118]
[1659281654614,1.46218,1709.8,1709.6,0.10079118]
[1659281654908,1.7546262,1709.8,1709.6,0.10079118]
[1659281655212,1.7046262,1709.8,1709.6,0.10079118]
[1659281656628,1.46218,1709.8,1709.6,0.10079118]
[1659281656994,10.53492,1709.9,1709.6,0.10079118]
[1659281657191,10.83492,1709.9,1709.6,0.10079118]
[1659281657978,10.83492,1709.9,1709.7,0.03415445]
[1659281660777,1.46203,1709.8,1709.7,0.03415445]
[1659281665124,8.12407672,1709.8,1709.7,5.445e-05]
[1659281665323,12.264,1709.7,1709.6,0.00084563]
[1659281665554,21.6675631,1709.7,1709.6,0.00084563]
[1659281665759,22.2675631,1709.7,1709.6,0.00084563]
[1659281665923,18.76204672,1709.7,1709.6,0.03401189]
[1659281667156,18.76204672,1709.7,1709.6,0.01078435]
[1659281668263,19.10676107,1709.7,1709.6,0.02291062]
[1659281669461,19.10676107,1709.7,1709.6,0.03235683]
[1659281671362,3.94471435,1709.7,1709.6,0.03235683]
[1659281672023,0.34471435,1709.7,1709.6,0.62135683]
[1659281672172,11.9981,1709.8,1709.6,0.62135683]
[1659281672588,8.8349,1709.8,1709.6,0.62135683]
[1659281672908,5.6281,1709.8,1709.6,0.62135683]
[1659281673104,10.23502,1709.9,1709.6,0.62135683]
[1659281673484,8.773,1709.9,1709.6,0.03235683]
[1659281674118,8.773,1709.9,1709.6,0.06308631]
[1659281674304,9.373,1709.9,1709.6,0.06308631]
[1659281674679,9.373,1709.9,1709.6,0.35546631]
[1659281675284,9.373,1709.9,1709.6,0.32310948]
[1659281676036,10.83498,1709.9,1709.6,0.03072948]
[1659281676927,11.17969435,1709.9,1709.6,0.03072948]
[1659281677332,11.17969435,1709.9,1709.4,0.35719813]
[1659281678086,8.773,1709.9,1709.6,0.29237]
[1659281678227,8.773,1709.9,1709.6,0.32300972]
[1659281678865,8.773,1709.9,1709.6,0.03063972]
[1659281679254,8.773,1709.9,1709.6,0.06290364]
[1659281680185,8.823,1709.9,1709.6,0.06290364]
[1659281681469,9.16771435,1709.9,1709.6,0.06290364]
[1659281682295,9.16771435,1709.9,1709.6,0.09524733]
[1659281683116,9.11771435,1709.9,1709.6,0.09524733]
[1659281684988,3.0,1709.8,1709.6,0.04524733]
[1659281685594,9.06771435,1709.9,1709.6,0.33762733]
[1659281686219,9.06771435,1709.9,1709.6,0.35370657]
[1659281687620,23.0534,1710.1,1709.7,0.03614852]
[1659281687932,17.3188,1710.1,1709.7,0.32843852]
[1659281688080,17.3188,1710.1,1709.7,0.35986321]
[1659281689099,14.2107,1710.1,1709.7,0.79896321]
[1659281689899,14.2107,1710.1,1709.7,0.35986321]
[1659281691308,11.5,1710.1,1709.8,2.89804672]
[1659281691506,11.5,1710.1,1709.8,3.19033672]
[1659281692006,11.5,1710.1,1709.8,3.2218405]
[1659281692709,11.5,1710.1,1709.8,0.03150378]
[1659281694713,11.5,1710.1,1709.8,0.32382378]
[1659281703821,12.96179,1710.1,1709.8,0.03150378]
[1659281704366,11.5,1710.1,1709.9,0.03156819]
[1659281706843,11.5,1710.1,1709.9,0.02873547]
[1659281709781,0.49063854,1710.0,1709.9,0.02873547]
[1659281710597,0.49063854,1710.0,1709.9,0.61773547]
[1659281711406,11.5,1710.1,1709.9,0.68056169]
[1659281711599,11.5,1710.1,1709.9,0.09156169]
[1659281711796,8.8461,1710.2,1709.9,0.09156169]
[1659281712245,8.8461,1710.2,1709.9,0.38385169]
[1659281713448,8.8461,1710.2,1709.9,3.30665169]
[1659281714329,8.8461,1710.2,1709.9,1.84525169]
[1659281714528,8.8461,1710.2,1709.9,0.38385169]
[1659281717916,8.8461,1710.2,1709.9,1.84529169]
[1659281718361,8.8461,1710.2,1710.0,0.2045878]
[1659281718716,3.05,1710.5,1710.0,2.89804672]
[1659281718946,3.6,1710.5,1710.0,2.92845142]
[1659281721299,17.6486,1710.6,1710.1,0.00282893]
[1659281721515,8.9541,1710.6,1710.2,0.15]
[1659281721698,8.9541,1710.6,1710.2,3.04804672]
[1659281722179,11.7738,1710.8,1710.2,3.04804672]
[1659281722180,5.9788,1710.8,1710.3,3.19023672]
[1659281722348,5.9788,1710.8,1710.3,6.47841436]
[1659281723602,9.48431638,1710.8,1710.2,0.02945515]
[1659281723756,12.44747741,1710.8,1710.2,0.02945515]
[1659281724185,0.34471435,1710.7,1710.2,0.02945515]
[1659281724755,0.05,1710.4,1710.2,0.02945515]
[1659281724985,0.39471435,1710.4,1710.2,0.02945515]
[1659281726894,0.34471435,1710.4,1710.2,0.02945515]
[1659281728854,12.3202,1710.5,1710.2,0.02945515]
[1659281729692,12.3202,1710.5,1710.2,0.02589609]
[1659281730280,9.3202,1710.5,1710.2,0.31814609]
[1659281730917,9.0202,1710.5,1710.2,0.31814609]
[1659281731406,9.0202,1710.5,1710.2,0.35031972]
[1659281732056,6.0288,1710.8,1710.3,2.89804672]
[1659281732300,6.0288,1710.8,1710.4,0.00291534]
[1659281732301,5.9788,1710.8,1710.4,0.00291534]
[1659281732514,3.2708,1710.8,1710.4,2.90096206]
[1659281732723,20.1536,1711.0,1710.4,2.90096206]
[1659281732887,20.1036,1711.0,1710.4,2.90096206]
[1659281733218,20.1036,1711.0,1710.4,3.34314206]
[1659281733381,20.1036,1711.0,1710.4,3.05096206]
[1659281733805,20.1036,1711.0,1710.5,2.89804672]
[1659281734208,20.1036,1711.0,1710.5,2.9566085]
[1659281734518,3.50551638,1710.9,1710.5,0.05856178]
[1659281734719,26.81564672,1711.0,1710.5,0.05856178]
[1659281734875,27.11564672,1711.0,1710.5,0.05856178]
[1659281735081,0.34471435,1710.9,1710.5,0.05856178]
[1659281735846,0.05,1710.8,1710.5,0.05856178]
[1659281736116,0.34471435,1710.7,1710.5,0.05856178]
[1659281736322,0.34471435,1710.7,1710.3,3.1076]
[1659281736534,0.0336369,1710.8,1710.4,3.01295148]
[1659281736884,0.0336369,1710.8,1710.5,2.89804672]
[1659281737341,0.0336369,1710.8,1710.4,0.11490476]
[1659281737342,0.0336369,1710.8,1710.4,3.01295148]
[1659281737742,0.0336369,1710.8,1710.4,0.11490476]
[1659281738322,0.05,1710.6,1710.3,3.1076]
[1659281738522,0.05,1710.6,1710.2,0.18663289]
[1659281739065,5.682,1710.3,1710.2,0.18663289]
[1659281740344,5.11718779,1710.3,1710.2,0.18663289]
[1659281740857,5.06718779,1710.3,1710.2,0.18663289]
[1659281741497,0.06718779,1710.3,1710.2,0.18663289]
[1659281744889,0.10197026,1710.3,1710.2,0.18663289]
[1659281747930,0.10197026,1710.3,1710.2,3.23467961]
[1659281748135,0.10197026,1710.3,1710.2,3.67367961]
[1659281748354,0.10197026,1710.3,1710.2,3.23467961]
[1659281748724,0.10197026,1710.3,1710.2,0.18663289]
[1659281750706,0.0985319,1710.3,1710.2,0.18663289]
[1659281754140,0.0985319,1710.3,1710.2,3.23467961]
[1659281755236,0.0985319,1710.3,1710.2,6.23467961]
[1659281755684,0.0985319,1710.3,1710.2,6.41066397]
[1659281758406,0.0985319,1710.3,1710.2,6.23467961]
[1659281760006,0.0985319,1710.3,1710.2,9.49517961]
[1659281760896,0.05,1710.7,1710.2,9.49517961]
[1659281760897,0.05,1710.7,1710.3,4.0]
[1659281761102,0.0336369,1710.8,1710.4,4.35888672]
[1659281761305,0.0336369,1710.8,1710.5,2.89804672]
[1659281762017,0.0336369,1710.8,1710.5,4.50887672]
[1659281762172,0.0336369,1710.8,1710.5,4.80104672]
[1659281763222,0.0336369,1710.8,1710.6,2.89804672]
[1659281763383,0.0336369,1710.8,1710.7,8.04804672]
[1659281763582,3.69e-05,1710.8,1710.7,8.04804672]
[1659281764196,3.69e-05,1710.8,1710.7,14.21304672]
[1659281764816,3.69e-05,1710.8,1710.7,17.21304672]
[1659281765022,0.08961027,1710.8,1710.7,17.21304672]
[1659281765489,0.05,1711.2,1710.8,0.029]
[1659281765709,0.05,1711.4,1711.1,0.15]
[1659281766042,17.3151,1711.6,1711.2,2.89804672]
[1659281766043,11.5,1711.6,1711.2,2.89804672]
[1659281766193,15.00551638,1711.6,1711.2,6.18430414]
[1659281767207,15.00551638,1711.6,1711.2,2.89804672]
[1659281767606,11.5,1711.6,1711.2,2.89804672]
[1659281767834,11.5,1711.6,1711.2,2.84804672]
[1659281768849,11.58788078,1711.6,1711.2,2.84804672]
[1659281769428,11.58788078,1711.6,1711.5,1.385]
[1659281769429,0.08788078,1711.6,1711.5,1.385]
[1659281769751,0.08788078,1711.6,1711.5,4.39795148]
[1659281770310,0.00305088,1711.9,1711.5,10.86295148]
[1659281770535,0.00305088,1711.9,1711.6,8.08819672]
[1659281770743,0.00305088,1711.9,1711.7,2.89804672]
[1659281770945,0.00305088,1711.9,1711.7,4.13304672]
[1659281771105,9.234,1712.2,1711.8,2.89804672]
[1659281771306,8.6272,1712.3,1711.8,3.18996672]
[1659281771307,2.7619,1712.3,1711.8,3.18996672]
[1659281771577,2.7619,1712.3,1711.9,2.89804672]
[1659281771790,0.00282241,1712.1,1711.9,3.18995672]
[1659281771957,0.00282241,1712.1,1712.0,2.89804672]
[1659281772547,0.00282241,1712.1,1712.0,2.89446864]
[1659281772746,9.57871435,1712.4,1712.0,2.89446864]
[1659281772972,0.07760995,1712.3,1712.0,3.18635864]
[1659281773195,0.07760995,1712.3,1712.0,0.29189]
[1659281773397,0.07760995,1712.3,1711.7,9.0668]
[1659281773682,3.58312633,1712.3,1711.8,3.18999672]
[1659281773894,3.58312633,1712.3,1711.9,2.89804672]
[1659281774076,0.07760995,1712.3,1711.9,2.89804672]
[1659281774443,0.07760995,1712.3,1711.9,3.04804672]
[1659281774665,0.07760995,1712.3,1712.2,0.15]
[1659281774873,0.07760995,1712.3,1711.9,4.42497672]
[1659281775656,0.07760995,1712.3,1711.9,1.52693]
[1659281775896,0.07760995,1712.3,1711.7,9.0668]
[1659281775897,0.4223243,1712.3,1711.7,9.0668]
[1659281776059,0.4223243,1712.3,1711.8,2.89804672]
[1659281776388,0.4223243,1712.3,1711.9,0.29193]
[1659281776603,0.4223243,1712.3,1711.9,3.18997672]
[1659281777285,0.4223243,1712.3,1712.0,0.18663289]
[1659281779330,0.4223243,1712.3,1712.0,0.47856289]
[1659281781144,0.07760995,1712.3,1712.0,0.47856289]
[1659281781299,0.07760995,1712.3,1712.0,0.49616309]
[1659281782095,0.07760995,1712.3,1712.0,0.18663289]
[1659281782742,0.4223243,1712.3,1712.0,0.18663289]
[1659281784112,10.14291004,1712.1,1712.0,0.18663289]
[1659281784304,10.78762439,1712.1,1712.0,0.18663289]
[1659281784459,7.82671435,1712.1,1712.0,0.18663289]
[1659281784662,7.77671435,1712.1,1712.0,0.18663289]
[1659281785718,10.49471435,1712.1,1712.0,0.18663289]
[1659281787156,3.94471435,1712.1,1712.0,0.18663289]
[1659281787881,0.94471435,1712.1,1712.0,0.18663289]
[1659281788006,0.64471435,1712.1,1712.0,0.18663289]
[1659281788846,1.02375967,1712.1,1712.0,0.18663289]
[1659281790740,1.27375967,1712.1,1712.0,0.18663289]
[1659281791118,4.17180639,1712.1,1711.5,0.05]
[1659281791347,2.89804672,1712.0,1711.4,0.29203]
[1659281791520,2.89804672,1712.0,1711.4,0.29504569]
[1659281791720,9.46105967,1712.1,1711.4,3.19309241]
[1659281792162,9.46105967,1712.1,1711.4,6.49189241]
[1659281792460,9.46105967,1712.1,1711.5,2.89804672]
[1659281792616,9.41105967,1712.1,1711.5,2.89804672]
[1659281792818,9.41105967,1712.1,1711.5,3.19004672]
[1659281793045,9.46105967,1712.1,1711.6,2.89804672]
[1659281793249,3.80325967,1712.1,1711.6,2.89804672]
[1659281793761,3.80325967,1712.1,1711.5,3.19004672]
[1659281794053,3.80325967,1712.1,1711.5,0.292]
[1659281794216,0.05,1711.9,1711.5,0.292]
[1659281794528,0.05,1711.9,1711.2,6.254905]
[1659281794728,0.05,1711.6,1711.2,9.10295172]
[1659281794948,0.05,1711.6,1711.3,2.89804672]
[1659281795114,3.312,1711.9,1711.4,3.72361461]
[1659281795115,3.612,1711.9,1711.4,3.72361461]
[1659281795314,3.562,1711.9,1711.5,2.89804672]
[1659281795515,0.3,1711.9,1711.5,2.89804672]
[1659281795823,0.3,1711.9,1711.4,2.89804672]
[1659281796026,0.3,1711.9,1711.5,0.29199]
[1659281796920,0.3,1711.9,1711.3,3.19008672]
[1659281797817,0.3,1711.9,1711.3,3.20077397]
[1659281798085,0.34471435,1711.8,1711.3,3.20077397]
[1659281798269,0.39471435,1711.8,1711.3,3.20077397]
[1659281798517,0.05,1711.6,1711.3,3.20077397]
[1659281798869,0.34471435,1711.8,1711.3,3.20077397]
[1659281799281,0.34471435,1711.8,1711.3,4.66097397]
[1659281799715,0.34471435,1711.8,1711.3,6.12110397]
[1659281801507,0.34471435,1711.8,1711.4,1.46009]
[1659281801709,0.34471435,1711.8,1711.5,2.89804672]
[1659281802116,0.71648853,1711.9,1711.5,4.56241262]
[1659281802285,0.11648853,1711.9,1711.5,4.66263667]
[1659281802489,0.11648853,1711.9,1711.6,3.33664672]
[1659281802687,0.11648853,1711.9,1711.7,2.89804672]
[1659281802950,0.11648853,1711.9,1711.7,4.12304672]
[1659281803085,0.03882951,1711.8,1711.7,4.1356152]
[1659281803899,0.03882951,1711.8,1711.7,5.5952852]
[1659281804309,0.07765902,1711.8,1711.7,5.5952852]
[1659281805134,0.07765902,1711.8,1711.7,5.7452852]
[1659281805294,0.07765902,1711.8,1711.7,6.1838852]
[1659281805732,0.07765902,1711.8,1711.7,5.7452852]
[1659281806373,0.07765902,1711.8,1711.7,9.5132852]
[1659281807554,0.07765902,1711.8,1711.7,9.3632852]
[1659281807876,0.07765902,1711.8,1711.7,9.53460132]
[1659281808075,0.07765902,1711.8,1711.7,9.09600132]
[1659281808244,0.07765902,1711.8,1711.7,7.45244672]
[1659281813302,0.07765902,1711.8,1711.7,7.60244672]
[1659281814063,0.07765902,1711.8,1711.7,7.45244672]
[1659281815404,0.07765902,1711.8,1711.7,4.5544]
[1659281819616,0.07765902,1711.8,1711.7,7.45244672]
[1659281822867,0.07765902,1711.8,1711.7,6.22744672]
[1659281823060,0.07765902,1711.8,1711.7,7.45744672]
[1659281828769,5.902e-05,1711.8,1711.7,13.62244672]
[1659281829482,0.07507236,1711.8,1711.7,13.62244672]
[1659281829687,0.07507236,1711.8,1711.7,13.92000263]
[1659281830111,0.07507236,1711.8,1711.7,7.75500263]
[1659281831493,0.03807236,1711.8,1711.7,7.75500263]
[1659281831691,0.05,1712.2,1712.1,7.65]
[1659281831897,1.123236,1712.5,1712.1,27.32524351]
[1659281832092,1.123236,1712.5,1712.4,4.232]
[1659281832304,1.123236,1712.5,1712.4,7.28004672]
[1659281833822,1.123236,1712.5,1712.4,7.48430772]
[1659281835019,1.1581176,1712.5,1712.4,7.48430772]
[1659281835375,1.1581176,1712.5,1712.2,3.1511]
[1659281835376,1.7901176,1712.5,1712.2,3.1511]
[1659281835596,1.7901176,1712.5,1712.0,1.8279]
[1659281835909,1.7901176,1712.5,1712.1,2.89804672]
[1659281836241,1.1581176,1712.5,1712.3,1.232]
[1659281836434,1.1581176,1712.5,1712.4,2.89804672]
[1659281838945,1.1581176,1712.5,1712.4,2.89515879]
[1659281839920,1.1581176,1712.5,1712.4,9.26442059]
[1659281840520,1.1581176,1712.5,1712.4,12.56442059]
[1659281840721,1.1581176,1712.5,1712.4,16.06442059]
[1659281840951,1.0316176,1712.5,1712.4,16.06442059]
[1659281841723,1.0316176,1712.5,1712.4,9.89942059]
[1659281841927,1.06463052,1712.5,1712.4,9.89942059]
[1659281842781,1.06463052,1712.5,1712.4,9.69515879]
[1659281842928,1.06463052,1712.5,1712.4,6.19515879]
[1659281843462,1.69663052,1712.5,1712.4,6.19515879]
[1659281843635,1.6636176,1712.5,1712.4,2.89515879]
[1659281845280,1.6636176,1712.5,1712.3,2.89804672]
[1659281845433,1.6636176,1712.5,1712.1,10.46648372]
[1659281845434,0.4884,1712.4,1711.9,0.05]
[1659281845640,0.4884,1712.4,1711.7,2.85565591]
[1659281845641,0.4884,1712.4,1711.7,7.2112]
[1659281845984,0.4384,1712.4,1711.8,2.89804672]
[1659281846187,0.34471435,1712.3,1711.8,3.18996672]
[1659281847906,0.34471435,1712.3,1711.9,2.89804672]
[1659281848131,0.34471435,1712.3,1711.9,3.18995672]
[1659281848459,0.34471435,1712.3,1712.0,2.89804672]
[1659281848664,0.34471435,1712.3,1712.0,3.18994672]